fUST/lending_fUST_20250105
["ID","MTS","AMOUNT","RATE_DAILY","PERIOD"]
[347666113,1736041650232,-593.17868995,0.00019178,2]
[347666114,1736041650252,-543.87323461,0.00019178,2]
[347666115,1736041650272,-505.40591627,0.00019178,2]
[347666116,1736041650294,-500.39351808,0.00019178,2]
[347666117,1736041650314,-500.2959187,0.00019178,2]
[347666118,1736041650334,-512.26206726,0.00019178,2]
[347666119,1736041650354,-502.20294352,0.00019178,2]
[347666120,1736041650374,-541.89076668,0.00019178,2]
[347666121,1736041650395,-500.0,0.00019178,2]
[347666122,1736041650416,-500.0,0.00019178,2]
[347666123,1736041650438,-500.0,0.00019178,2]
[347666124,1736041650458,-503.59519737,0.00019178,2]
[347666125,1736041650478,-504.84247301,0.00019178,2]
[347666126,1736041650498,-504.28413715,0.00019178,2]
[347666127,1736041650518,-500.0,0.00019178,2]
[347666128,1736041650538,-502.09187584,0.00019178,2]
[347666129,1736041650558,-504.19454651,0.00019178,2]
[347666130,1736041650580,-500.0,0.00019178,2]
[347666131,1736041650600,-500.0,0.00019178,2]
[347666132,1736041650620,-501.75013643,0.00019178,2]
[347666133,1736041650640,-504.0785752,0.00019178,2]
[347666134,1736041650662,-501.2,0.00019178,2]
[347666135,1736041650683,-500.0,0.00019178,2]
[347666136,1736041650703,-500.0,0.00019178,2]
[347666137,1736041650723,-506.30574991,0.00019178,2]
[347666138,1736041650743,-612.77621156,0.00019178,2]
[347666139,1736041650763,-500.0,0.00019178,2]
[347666140,1736041650786,-502.99073674,0.00019178,2]
[347666141,1736041650806,-504.22383972,0.00019178,2]
[347666142,1736041650826,-504.37293859,0.00019178,2]
[347666143,1736041650846,-266.90612897,0.00019178,2]
[347666144,1736041650866,-500.0,0.00019178,2]
[347666145,1736041650886,-500.0,0.00019178,2]
[347666146,1736041650909,-500.98859173,0.00019178,2]
[347666147,1736041650929,-502.39124215,0.00019178,2]
[347666148,1736041650950,-960.76,0.00019178,2]
[347666149,1736041650971,-504.47090503,0.00019178,2]
[347666150,1736041650993,-500.0,0.00019178,2]
[347666151,1736041651013,-500.0,0.00019178,2]
[347666152,1736041651035,-502.98895973,0.00019178,2]
[347666153,1736041651054,-500.0,0.00019178,2]
[347666154,1736041651074,-248.98035415,0.00019178,2]
[347666155,1736041651095,-506.25665597,0.00019178,2]
[347666156,1736041651116,-1494.43,0.00019178,2]
[347666157,1736041651137,-504.50005392,0.00019178,2]
[347666158,1736041651158,-505.49495391,0.00019178,2]
[347666159,1736041651179,-505.18007458,0.00019178,2]
[347666160,1736041651199,-500.0,0.00019178,2]
[347666161,1736041651219,-500.0,0.00019178,2]
[347666162,1736041651239,-500.0,0.00019178,2]
[347666163,1736041651259,-500.0,0.00019178,2]
[347666164,1736041651279,-502.81744354,0.00019178,2]
[347666165,1736041651299,-500.0,0.00019178,2]
[347666166,1736041651319,-500.0,0.00019178,2]
[347666167,1736041651340,-500.0,0.00019178,2]
[347666168,1736041651362,-391.82599269,0.00019178,2]
[347666169,1736041651382,-505.16276049,0.00019178,2]
[347666170,1736041651403,-500.0,0.00019178,2]
[347666171,1736041651423,-502.26221893,0.00019178,2]
[347666172,1736041651445,-613.01,0.00019178,2]
[347666173,1736041651466,-573.93,0.00019178,2]
[347666174,1736041651486,-552.61,0.00019178,2]
[347666175,1736041651506,-503.74072127,0.00019178,2]
[347666176,1736041651525,-503.21446939,0.00019178,2]
[347666177,1736041651545,-334.01603668,0.00019178,2]
[347666178,1736041651565,-500.0,0.00019178,2]
[347666179,1736041651586,-1481.39,0.00019178,2]
[347666180,1736041651607,-801.02,0.00019178,2]
[347666181,1736041651627,-500.0,0.00019178,2]
[347666182,1736041651647,-502.07569149,0.00019178,2]
[347666183,1736041651667,-500.0,0.00019178,2]
[347666184,1736041651688,-657.36,0.00019178,2]
[347666185,1736041651708,-500.0,0.00019178,2]
[347666186,1736041651729,-333.33963158,0.00019178,2]
[347666187,1736041651750,-500.0,0.00019178,2]
[347666188,1736041651771,-747.28,0.00019178,2]
[347666189,1736041651792,-501.50443457,0.00019178,2]
[347666190,1736041651811,-502.54118093,0.00019178,2]
[347666191,1736041651831,-500.0,0.00019178,2]
[347666192,1736041651850,-505.83091031,0.00019178,2]
[347666193,1736041651870,-507.76973428,0.00019178,2]
[347666194,1736041651890,-507.74178292,0.00019178,2]
[347666195,1736041651911,-500.0,0.00019178,2]
[347666196,1736041651931,-501.63533993,0.00019178,2]
[347666197,1736041651950,-500.0,0.00019178,2]
[347666198,1736041651973,-500.0,0.00019178,2]
[347666199,1736041651994,-500.67292592,0.00019178,2]
[347666200,1736041652018,-722.53,0.00019178,2]
[347666201,1736041652040,-501.03772969,0.00019178,2]
[347666202,1736041652061,-501.50500257,0.00019178,2]
[347666203,1736041652084,-500.0,0.00019178,2]
[347666204,1736041652106,-500.0,0.00019178,2]
[347666205,1736041652132,-500.0,0.00019178,2]
[347666206,1736041652152,-504.2569671,0.00019178,2]
[347666207,1736041652172,-501.94956402,0.00019178,2]
[347666208,1736041652194,-500.0,0.00019178,2]
[347666209,1736041652215,-384.04769514,0.00019178,2]
[347666210,1736041652235,-500.0,0.00019178,2]
[347666211,1736041652255,-500.0,0.00019178,2]
[347666212,1736041652275,-501.67527481,0.00019178,2]
[347666213,1736041652437,-421.55666607,0.00019178,2]
[347666214,1736041652458,-501.66328346,0.00019178,2]
[347666215,1736041652481,-500.0,0.00019178,2]
[347666216,1736041652501,-500.0,0.00019178,2]
[347666217,1736041652521,-500.0,0.00019178,2]
[347666218,1736041652542,-500.0,0.00019178,2]
[347666219,1736041652563,-505.67441448,0.00019178,2]
[347666220,1736041652584,-500.0,0.00019178,2]
[347666221,1736041652605,-632.9,0.00019178,2]
[347666222,1736041652627,-500.0,0.00019178,2]
[347666223,1736041652648,-500.0,0.00019178,2]
[347666224,1736041652672,-500.0,0.00019178,2]
[347666225,1736041652696,-503.18814173,0.00019178,2]
[347666226,1736041652718,-500.0,0.00019178,2]
[347666227,1736041652743,-500.0,0.00019178,2]
[347666228,1736041652765,-500.0,0.00019178,2]
[347666229,1736041652787,-500.0,0.00019178,2]
[347666230,1736041652806,-188.0,0.00019178,2]
[347666231,1736041652826,-500.0,0.00019178,2]
[347666232,1736041652846,-500.0,0.00019178,2]
[347666233,1736041652867,-1178.36,0.00019178,2]
[347666234,1736041652887,-500.0,0.00019178,2]
[347666235,1736041652912,-848.49,0.00019178,2]
[347666236,1736041652932,-500.0,0.00019178,2]
[347666237,1736041652954,-164.03769196,0.00019178,2]
[347666238,1736041652973,-500.0,0.00019178,2]
[347666239,1736041652994,-631.09963516,0.00019178,2]
[347666240,1736041653014,-505.63270385,0.00019178,2]
[347666241,1736041653035,-500.0,0.00019178,2]
[347666242,1736041653055,-502.8415082,0.00019178,2]
[347666243,1736041653078,-592.66,0.00019178,2]
[347666244,1736041653099,-105.90756008,0.00019178,2]
[347666446,1736041837844,-324.147301,0.00018175,2]
[347666447,1736041837854,-191.4840872,0.00018986,2]
[347666448,1736041837863,-157.14105489,0.00019078,2]
[347666449,1736041837872,-710.98309317,0.00019078,2]
[347666450,1736041837881,-287.54399974,0.00019078,2]
[347666474,1736041840041,-386.14391824,0.00019078,2]
[347666475,1736041840052,-157.14105488,0.00019169,2]
[347666476,1736041840061,-504.11863336,0.00019173,2]
[347666477,1736041840070,-193.65090809,0.00019173,2]
[347666478,1736041840079,-300.0,0.00019177,2]
[347666479,1736041840088,-722.51206657,0.00019178,2]
[347666480,1736041840097,-1060.43341826,0.00019178,2]
[347666489,1736041843346,-3780.92352993,0.00019178,2]
[347666494,1736041843586,-34.5962319,0.00019178,2]
[347666511,1736041847922,-4033.22473147,0.00019178,2]
[347666512,1736041847933,-396.93973721,0.00019178,2]
[347666513,1736041847943,-504.02762349,0.00019178,2]
[347666514,1736041847952,-500.0,0.00019178,2]
[347666515,1736041847962,-764.47,0.00019178,2]
[347666516,1736041847974,-1102.63,0.00019178,2]
[347666517,1736041847986,-502.79306411,0.00019178,2]
[347666518,1736041847997,-504.91056146,0.00019178,2]
[347666519,1736041848006,-502.75335815,0.00019178,2]
[347666520,1736041848015,-687.8,0.00019178,2]
[347666521,1736041848024,-504.1369614,0.00019178,2]
[347666522,1736041848033,-510.16643077,0.00019178,2]
[347666523,1736041848042,-655.28,0.00019178,2]
[347666524,1736041848051,-500.0,0.00019178,2]
[347666525,1736041848060,-504.75019003,0.00019178,2]
[347666526,1736041848069,-564.28,0.00019178,2]
[347666527,1736041848078,-504.17747832,0.00019178,2]
[347666528,1736041848087,-1036.14,0.00019178,2]
[347666529,1736041848096,-501.42041332,0.00019178,2]
[347666530,1736041848105,-500.0,0.00019178,2]
[347666531,1736041848114,-500.0,0.00019178,2]
[347666532,1736041848123,-501.41545885,0.00019178,2]
[347666533,1736041848132,-701.52,0.00019178,2]
[347666534,1736041848141,-504.89275601,0.00019178,2]
[347666535,1736041848150,-505.40337317,0.00019178,2]
[347666536,1736041848159,-505.87882432,0.00019178,2]
[347666537,1736041848168,-396.21443343,0.00019178,2]
[347666538,1736041848207,-106.4082574,0.00019178,2]
[347666539,1736041848217,-500.42637049,0.00019178,2]
[347666540,1736041848226,-236.21875395,0.00019178,2]
[347666541,1736041848237,-558.6771946,0.00019178,2]
[347666542,1736041848248,-19.92405145,0.00019178,2]
[347666543,1736041848257,-500.0,0.00019178,2]
[347666544,1736041848267,-512.39527253,0.00019178,2]
[347666545,1736041848275,-503.83515362,0.00019178,2]
[347666546,1736041848285,-502.58215636,0.00019178,2]
[347666547,1736041848294,-502.78692787,0.00019178,2]
[347666548,1736041848303,-500.0,0.00019178,2]
[347666549,1736041848313,-500.0,0.00019178,2]
[347666550,1736041848322,-1064.27,0.00019178,2]
[347666551,1736041848331,-500.0,0.00019178,2]
[347666552,1736041848340,-505.28256231,0.00019178,2]
[347666553,1736041848350,-907.13,0.00019178,2]
[347666554,1736041848360,-627.44803253,0.00019178,2]
[347666555,1736041848369,-505.00231615,0.00019178,2]
[347666556,1736041848378,-773.28,0.00019178,2]
[347666557,1736041848387,-734.8,0.00019178,2]
[347666558,1736041848396,-500.0,0.00019178,2]
[347666559,1736041848406,-500.0,0.00019178,2]
[347666560,1736041848415,-502.86125604,0.00019178,2]
[347666561,1736041848424,-500.0,0.00019178,2]
[347666562,1736041848434,-505.62122544,0.00019178,2]
[347666563,1736041848443,-500.0,0.00019178,2]
[347666564,1736041848453,-692.22,0.00019178,2]
[347666565,1736041848462,-502.7055541,0.00019178,2]
[347666566,1736041848471,-504.58050424,0.00019178,2]
[347666567,1736041848480,-500.0,0.00019178,2]
[347666568,1736041848490,-627.15,0.00019178,2]
[347666569,1736041848499,-506.59028253,0.00019178,2]
[347666570,1736041848508,-500.0,0.00019178,2]
[347666571,1736041848518,-1021.8,0.00019178,2]
[347666572,1736041848527,-504.66347145,0.00019178,2]
[347666573,1736041848537,-505.14035827,0.00019178,2]
[347666574,1736041848546,-500.0,0.00019178,2]
[347666575,1736041848555,-500.0,0.00019178,2]
[347666576,1736041848564,-370.52891473,0.00019178,2]
[347666577,1736041848572,-525.55014159,0.00019178,2]
[347666578,1736041848581,-259.60677629,0.00019178,2]
[347666579,1736041848591,-500.0,0.00019178,2]
[347666580,1736041848600,-503.66253606,0.00019178,2]
[347666581,1736041848609,-505.54837083,0.00019178,2]
[347666582,1736041848618,-503.72824234,0.00019178,2]
[347666583,1736041848627,-301.51229118,0.00019178,2]
[347666584,1736041848636,-502.52729946,0.00019178,2]
[347666585,1736041848645,-162.70955147,0.00019178,2]
[347666586,1736041848654,-225.24442583,0.00019178,2]
[347666587,1736041848663,-539.73550048,0.00019178,2]
[347666588,1736041848672,-638.35,0.00019178,2]
[347666589,1736041848681,-503.77307912,0.00019178,2]
[347666590,1736041848691,-506.27696315,0.00019178,2]
[347666591,1736041848700,-500.0,0.00019178,2]
[347666592,1736041848709,-526.23847952,0.00019178,2]
[347666593,1736041848718,-505.62817114,0.00019178,2]
[347666594,1736041848728,-500.0,0.00019178,2]
[347666595,1736041848737,-500.0,0.00019178,2]
[347666596,1736041848746,-504.40184589,0.00019178,2]
[347666597,1736041848756,-500.0,0.00019178,2]
[347666598,1736041848765,-418.91590059,0.00019178,2]
[347666599,1736041848775,-1224.94,0.00019178,2]
[347666600,1736041848784,-500.0,0.00019178,2]
[347666601,1736041848793,-502.17158121,0.00019178,2]
[347666602,1736041848803,-502.13243531,0.00019178,2]
[347666603,1736041848812,-502.03865423,0.00019178,2]
[347666604,1736041848821,-1722.79,0.00019178,2]
[347666605,1736041848830,-74.62111245,0.00019178,2]
[347666606,1736042068960,303.488282,0.00013973,2]
[347666608,1736042295853,262.098403,0.00025,120]
[347666609,1736042363410,1400.0,0.00025,120]
[347666611,1736042827152,-371.970656,0.00017171,2]
[347666612,1736042827175,-371.970656,0.00017344,2]
[347666613,1736042827197,-311.0440939,0.00017901,2]
[347666614,1736042827217,-396.98192028,0.00017901,2]
[347666615,1736042827238,-300.0,0.0001808,2]
[347666616,1736042827261,-6070.70260085,0.00018081,2]
[347666617,1736042950651,308.313868,0.00013973,2]
[347666618,1736043019171,285.68910027,0.00017624,2]
[347666645,1736043032327,-3018.3876382,0.00017802,2]
[347666646,1736043032338,-250.0,0.00017809,2]
[347666647,1736043032347,-300.0,0.0001808,2]
[347666648,1736043032357,-6546.61771954,0.00018081,2]
[347666649,1736043032368,-833.69824618,0.00018081,2]
[347666650,1736043032496,-10971.07233472,0.00018081,2]
[347666651,1736043032510,-477.90909871,0.00018081,2]
[347666652,1736043032519,-1464.55715096,0.00018441,2]
[347666653,1736043032528,-393.3641199,0.00018541,2]
[347666654,1736043032537,-217.2395995,0.00018685,2]
[347666655,1736043032546,-306.4133028,0.00018685,2]
[347666656,1736043032556,-245.949,0.00018697,2]
[347666658,1736043032565,-320.3964429,0.000187,2]
[347666660,1736043032575,-487.461,0.0001874,2]
[347666662,1736043032585,-400.713,0.00018947,2]
[347666664,1736043032594,-352.7875366,0.00018986,2]
[347666666,1736043032607,-357.7012801,0.00018986,2]
[347666668,1736043032616,-352.7875366,0.00018986,2]
[347666670,1736043032625,-352.7875366,0.00018986,2]
[347666672,1736043032635,-352.7875366,0.00018986,2]
[347666674,1736043032646,-352.7875366,0.00018986,2]
[347666676,1736043032655,-352.7875366,0.00018986,2]
[347666678,1736043032665,-352.7875366,0.00018986,2]
[347666680,1736043032676,-302.90913937,0.00019,2]
[347666682,1736043032685,-151.0,0.0001901,2]
[347666684,1736043032695,-675.32941583,0.00019077,2]
[347666686,1736043032704,-159.42195829,0.00019078,2]
[347666688,1736043032713,-152.0,0.00019115,2]
[347666690,1736043032723,-500.0,0.00019177,2]
[347666692,1736043032732,-207.64728117,0.00019177,2]
[347666695,1736043032744,-373.57814069,0.00019177,2]
[347666696,1736043032753,-500.0,0.00019177,2]
[347666699,1736043032763,-313.78848862,0.00019177,2]
[347666701,1736043032772,-500.0,0.00019177,2]
[347666703,1736043032781,-500.0,0.00019177,2]
[347666705,1736043032791,-500.0,0.00019177,2]
[347666707,1736043032800,-500.0,0.00019177,2]
[347666708,1736043032810,-521.05643976,0.00019177,2]
[347666711,1736043032819,-500.0,0.00019177,2]
[347666713,1736043032829,-500.0,0.00019177,2]
[347666715,1736043032840,-500.0,0.00019177,2]
[347666717,1736043032850,-500.0,0.00019177,2]
[347666719,1736043032861,-500.0,0.00019177,2]
[347666721,1736043032871,-500.0,0.00019177,2]
[347666722,1736043032880,-500.0,0.00019177,2]
[347666725,1736043032891,-500.0,0.00019177,2]
[347666726,1736043032901,-500.0,0.00019177,2]
[347666727,1736043032912,-317.59563879,0.00019177,2]
[347666728,1736043032923,-500.0,0.00019177,2]
[347666729,1736043032932,-287.69730585,0.00019177,2]
[347666730,1736043032945,-212.30269415,0.00019177,2]
[347666731,1736043032954,-230.43298973,0.00019177,2]
[347666732,1736043032964,-170.57932112,0.00019177,2]
[347666751,1736043038149,-83.62864905,0.00019177,2]
[347666753,1736043038158,-8685.26899621,0.00019178,2]
[347666754,1736043038167,-73341.81817276,0.00019178,2]
[347666755,1736043038178,-500.0,0.00019178,2]
[347666756,1736043038188,-528.16815933,0.00019178,2]
[347666757,1736043038198,-502.32024823,0.00019178,2]
[347666758,1736043038208,-504.2684758,0.00019178,2]
[347666759,1736043038219,-500.0,0.00019178,2]
[347666760,1736043038241,-188.62437777,0.00019178,2]
[347666761,1736043038251,-504.6836699,0.00019178,2]
[347666762,1736043038261,-503.37514909,0.00019178,2]
[347666763,1736043038271,-500.0,0.00019178,2]
[347666764,1736043038280,-505.06105836,0.00019178,2]
[347666765,1736043038290,-505.7694854,0.00019178,2]
[347666766,1736043038299,-503.88881734,0.00019178,2]
[347666767,1736043038309,-503.8953114,0.00019178,2]
[347666768,1736043038318,-230.9069739,0.00019178,2]
[347666769,1736043038328,-507.89211096,0.00019178,2]
[347666770,1736043038338,-500.0,0.00019178,2]
[347666771,1736043038348,-500.0,0.00019178,2]
[347666772,1736043038357,-500.0,0.00019178,2]
[347666773,1736043038367,-500.0,0.00019178,2]
[347666774,1736043038377,-500.0,0.00019178,2]
[347666775,1736043038386,-500.0,0.00019178,2]
[347666776,1736043038395,-500.0,0.00019178,2]
[347666777,1736043038405,-427.59118158,0.00019178,2]
[347666778,1736043038415,-500.0,0.00019178,2]
[347666779,1736043038424,-150.23961574,0.00019178,2]
[347666780,1736043038434,-502.33016298,0.00019178,2]
[347666781,1736043038443,-500.0,0.00019178,2]
[347666782,1736043038453,-692.42,0.00019178,2]
[347666783,1736043038463,-500.0,0.00019178,2]
[347666784,1736043038473,-500.0,0.00019178,2]
[347666785,1736043038483,-500.0,0.00019178,2]
[347666786,1736043038493,-504.0103854,0.00019178,2]
[347666787,1736043038504,-500.0,0.00019178,2]
[347666788,1736043038514,-690.39,0.00019178,2]
[347666789,1736043038524,-500.0,0.00019178,2]
[347666790,1736043038534,-606.53,0.00019178,2]
[347666791,1736043038543,-503.51161984,0.00019178,2]
[347666792,1736043038553,-503.55122576,0.00019178,2]
[347666793,1736043038563,-503.94217837,0.00019178,2]
[347666794,1736043038572,-504.49659558,0.00019178,2]
[347666795,1736043038582,-503.52028319,0.00019178,2]
[347666796,1736043038590,-506.78034584,0.00019178,2]
[347666797,1736043038601,-500.0,0.00019178,2]
[347666798,1736043038611,-1129.26,0.00019178,2]
[347666799,1736043038620,-504.01123079,0.00019178,2]
[347666800,1736043038630,-434.08124989,0.00019178,2]
[347666801,1736043038640,-500.0,0.00019178,2]
[347666802,1736043038650,-201.32722033,0.00019178,2]
[347666803,1736043038660,-813.14,0.00019178,2]
[347666804,1736043038670,-567.97,0.00019178,2]
[347666805,1736043038682,-500.0,0.00019178,2]
[347666806,1736043038691,-659.15,0.00019178,2]
[347666807,1736043038701,-174.99892735,0.00019178,2]
[347666969,1736043043587,-325.00107265,0.00019178,2]
[347666970,1736043043598,-1056.69,0.00019178,2]
[347666971,1736043043611,-500.0,0.00019178,2]
[347666973,1736043043621,-540.76,0.00019178,2]
[347666975,1736043043631,-732.62,0.00019178,2]
[347666977,1736043043640,-992.96,0.00019178,2]
[347666979,1736043043650,-627.97,0.00019178,2]
[347666980,1736043043660,-672.29,0.00019178,2]
[347666981,1736043043670,-500.0,0.00019178,2]
[347666982,1736043043681,-500.0,0.00019178,2]
[347666983,1736043043690,-780.87,0.00019178,2]
[347666984,1736043043700,-1019.93,0.00019178,2]
[347666985,1736043043710,-500.0,0.00019178,2]
[347666986,1736043043719,-500.0,0.00019178,2]
[347666987,1736043043730,-500.0,0.00019178,2]
[347666988,1736043043740,-704.19,0.00019178,2]
[347666989,1736043043750,-500.0,0.00019178,2]
[347666990,1736043043759,-500.0,0.00019178,2]
[347666991,1736043043769,-500.0,0.00019178,2]
[347666992,1736043043779,-741.06,0.00019178,2]
[347666993,1736043043789,-608.3486229,0.00019178,2]
[347666994,1736043043798,-500.0,0.00019178,2]
[347666995,1736043043808,-388.04150142,0.00019178,2]
[347666996,1736043043818,-500.0,0.00019178,2]
[347666997,1736043043827,-500.0,0.00019178,2]
[347666998,1736043043837,-500.0,0.00019178,2]
[347666999,1736043043847,-979.22,0.00019178,2]
[347667000,1736043043857,-601.02,0.00019178,2]
[347667001,1736043043867,-500.0,0.00019178,2]
[347667002,1736043043876,-500.0,0.00019178,2]
[347667003,1736043043886,-501.93319602,0.00019178,2]
[347667004,1736043043896,-500.0,0.00019178,2]
[347667005,1736043043906,-501.55090374,0.00019178,2]
[347667006,1736043043915,-500.0,0.00019178,2]
[347667007,1736043043925,-500.0,0.00019178,2]
[347667008,1736043043934,-500.0,0.00019178,2]
[347667009,1736043043944,-501.74457018,0.00019178,2]
[347667010,1736043043954,-869.33,0.00019178,2]
[347667011,1736043043964,-500.0,0.00019178,2]
[347667012,1736043043974,-500.0,0.00019178,2]
[347667013,1736043043983,-500.0,0.00019178,2]
[347667014,1736043043993,-500.0,0.00019178,2]
[347667015,1736043044002,-500.0,0.00019178,2]
[347667016,1736043044012,-500.79675362,0.00019178,2]
[347667017,1736043044022,-503.85509534,0.00019178,2]
[347667018,1736043044032,-500.0,0.00019178,2]
[347667019,1736043044041,-3618.57,0.00019178,2]
[347667020,1736043044051,-500.0,0.00019178,2]
[347667021,1736043044061,-519.24031351,0.00019178,2]
[347667022,1736043044071,-339.33655827,0.00019178,2]
[347667023,1736043044080,-500.0,0.00019178,2]
[347667024,1736043044090,-1651.01,0.00019178,2]
[347667025,1736043044100,-525.73452213,0.00019178,2]
[347667026,1736043044110,-404.07246577,0.00019178,2]
[347667027,1736043044120,-500.0,0.00019178,2]
[347667028,1736043044129,-500.0,0.00019178,2]
[347667029,1736043044139,-501.01404317,0.00019178,2]
[347667030,1736043044149,-611.75,0.00019178,2]
[347667031,1736043044160,-1297.71,0.00019178,2]
[347667032,1736043044170,-500.0,0.00019178,2]
[347667033,1736043044180,-500.0,0.00019178,2]
[347667034,1736043044189,-500.0,0.00019178,2]
[347667035,1736043044199,-500.0,0.00019178,2]
[347667036,1736043044211,-500.0,0.00019178,2]
[347667037,1736043044220,-500.0,0.00019178,2]
[347667038,1736043044230,-746.25,0.00019178,2]
[347667039,1736043044240,-500.0,0.00019178,2]
[347667040,1736043044250,-484.51861308,0.00019178,2]
[347667041,1736043044259,-8058.43,0.00019178,2]
[347667042,1736043044269,-480.34532404,0.00019178,2]
[347667079,1736043046212,-517.70467596,0.00019178,2]
[347667081,1736043046222,-500.0,0.00019178,2]
[347667084,1736043046232,-172.78442904,0.00019178,2]
[347667095,1736043653517,13900.0,0.00014,2]
[347667096,1736043915031,312.898174,0.00013973,2]
[347667158,1736044232433,-201.19674944,0.00016472,2]
[347667160,1736044232443,-201.19674944,0.00016638,2]
[347667162,1736044232453,-500.0,0.00016806,2]
[347667165,1736044232462,-2581.44312128,0.00017,2]
[347667174,1736044232542,-2627.9010974,0.00017,2]
[347667176,1736044232554,-683.2383488,0.00017,2]
[347667179,1736044232563,-372.1316512,0.00017691,2]
[347667566,1736044238134,-127.8683488,0.00017691,2]
[347667568,1736044238144,-290.933831,0.00017974,2]
[347667570,1736044238154,-19.66069061,0.00018154,2]
[347667572,1736044238166,-280.33930939,0.00018154,2]
[347667574,1736044238175,-161.0,0.00018154,2]
[347667576,1736044238184,-19956.347942,0.00018155,2]
[347667579,1736044238194,-499.821,0.0001822,2]
[347667581,1736044238203,-214.5513576,0.00018378,2]
[347667583,1736044238213,-153.6666692,0.00018378,2]
[347667585,1736044238221,-156.0343789,0.00018378,2]
[347667587,1736044238230,-154.5838917,0.00018378,2]
[347667589,1736044238239,-217.8901678,0.00018378,2]
[347667591,1736044238249,-181.25141985,0.00018575,2]
[347667593,1736044238260,-251.658,0.00018697,2]
[347667595,1736044238269,-1167.4111965,0.000189,2]
[347667597,1736044238277,-632.20502771,0.000189,2]
[347667599,1736044238288,-376.5371902,0.00018986,2]
[347667601,1736044238297,-302.90913937,0.00019,2]
[347667603,1736044238306,-2329.213,0.00019057,2]
[347667605,1736044238315,-394.0,0.00019057,2]
[347667607,1736044238324,-151.419,0.00019057,2]
[347667609,1736044238333,-152.0,0.00019064,2]
[347667627,1736044238342,-170.54969647,0.00019078,2]
[347667630,1736044238502,-153.87,0.00019078,2]
[347667632,1736044238511,-170.54969644,0.00019147,2]
[347667633,1736044238520,-404.23965931,0.0001917,2]
[347667686,1736044240269,-856.000005,0.0001917,2]
[347667699,1736044240385,-2596.97607338,0.0001917,2]
[347667702,1736044240396,-504.12813619,0.00019173,2]
[347667704,1736044240405,-500.0,0.00019173,2]
[347667705,1736044240415,-486.7002615,0.00019173,2]
[347667708,1736044240424,-293.19294898,0.00019177,2]
[347667709,1736044240433,-580.75285243,0.00019177,2]
[347667711,1736044240443,-321.77649898,0.00019177,2]
[347667713,1736044240452,-500.0,0.00019177,2]
[347667715,1736044240461,-500.0,0.00019177,2]
[347667717,1736044240472,-500.0,0.00019177,2]
[347667719,1736044240481,-322.2954387,0.00019177,2]
[347667721,1736044240491,-500.0,0.00019177,2]
[347667723,1736044240500,-500.0,0.00019177,2]
[347667725,1736044240510,-500.0,0.00019177,2]
[347667727,1736044240519,-633.78268207,0.00019177,2]
[347667730,1736044240528,-500.0,0.00019177,2]
[347667732,1736044240537,-500.0,0.00019177,2]
[347667734,1736044240547,-500.0,0.00019177,2]
[347667736,1736044240557,-500.0,0.00019177,2]
[347667738,1736044240566,-500.0,0.00019177,2]
[347667740,1736044240575,-500.0,0.00019177,2]
[347667741,1736044240585,-27.73261352,0.00019177,2]
[347668013,1736044243304,-472.26738648,0.00019177,2]
[347668015,1736044243314,-500.0,0.00019177,2]
[347668017,1736044243324,-285.65967979,0.00019177,2]
[347668268,1736044246202,-535.0,0.00019174,2]
[347668269,1736044246211,-214.34032021,0.00019177,2]
[347668270,1736044246221,-500.0,0.00019177,2]
[347668271,1736044246230,-288.0014771,0.00019177,2]
[347668272,1736044246240,-500.0,0.00019177,2]